[Event "Titled Tuesday Blitz January 10 Late 2023"]
[White "Aravindh, Chithambaram VR."]
[Black "Rustemov, Alexander"]
[WhiteFideId "5072786"]
[BlackFideId "4119002"]
[WhiteElo "2633"]
[BlackElo "2525"]
[Result "0-1"]
[Round "08"]
[TimeControl "180+2"]
[Date "2023.01.10"]
[WhiteClock "0:00:04"]
[BlackClock "0:00:10"]

1. b3 {[%clk 0:00:00]}  d5 {[%clk 0:00:00]} 2. Bb2 {[%clk 0:03:00]}  Nf6 {[%clk 0:02:58]} 3. Nf3 {[%clk 0:03:01]}  Bf5 {[%clk 0:02:58]} 4. Nh4 {[%clk 0:03:01]}  Bg6 {[%clk 0:02:58]} 5. e3 {[%clk 0:03:01]}  Nbd7 {[%clk 0:02:56]} 6. f4 {[%clk 0:02:58]}  e6 {[%clk 0:02:54]} 7. Nxg6 {[%clk 0:02:55]}  hxg6 {[%clk 0:02:52]} 8. Nc3 {[%clk 0:02:50]}  c6 {[%clk 0:02:52]} 9. g3 {[%clk 0:02:41]}  Bd6 {[%clk 0:02:51]} 10. d4 {[%clk 0:02:37]}  Bb4 {[%clk 0:02:51]} 11. Bg2 {[%clk 0:02:35]}  c5 {[%clk 0:02:48]} 12. a3 {[%clk 0:02:31]}  Bxc3+ {[%clk 0:02:10]} 13. Bxc3 {[%clk 0:02:25]}  O-O {[%clk 0:02:10]} 14. O-O {[%clk 0:02:26]}  Rc8 {[%clk 0:02:08]} 15. dxc5 {[%clk 0:02:24]}  Nxc5 {[%clk 0:02:08]} 16. Bd4 {[%clk 0:02:17]}  Nce4 {[%clk 0:02:08]} 17. c4 {[%clk 0:02:17]}  dxc4 {[%clk 0:01:57]} 18. bxc4 {[%clk 0:02:01]}  Qc7 {[%clk 0:01:55]} 19. Qd3 {[%clk 0:02:02]}  Nc5 {[%clk 0:01:45]} 20. Qc2 {[%clk 0:01:52]}  b6 {[%clk 0:01:39]} 21. Rad1 {[%clk 0:01:52]}  Ncd7 {[%clk 0:01:37]} 22. Rc1 {[%clk 0:01:49]}  e5 {[%clk 0:01:34]} 23. Bb2 {[%clk 0:01:48]}  Qc5 {[%clk 0:01:26]} 24. Qc3 {[%clk 0:01:47]}  Rfe8 {[%clk 0:01:24]} 25. f5 {[%clk 0:01:45]}  g5 {[%clk 0:01:23]} 26. Kh1 {[%clk 0:01:40]}  e4 {[%clk 0:01:13]} 27. Qb3 {[%clk 0:01:38]}  Ne5 {[%clk 0:01:13]} 28. Bd4 {[%clk 0:01:25]}  Qe7 {[%clk 0:01:13]} 29. a4 {[%clk 0:01:25]}  g4 {[%clk 0:01:11]} 30. Rcd1 {[%clk 0:01:05]}  Nf3 {[%clk 0:01:11]} 31. Bb2 {[%clk 0:00:49]}  Qc5 {[%clk 0:01:11]} 32. Qb5 {[%clk 0:00:46]}  Qxc4 {[%clk 0:01:09]} 33. Rc1 {[%clk 0:00:23]}  Qxb5 {[%clk 0:01:05]} 34. axb5 {[%clk 0:00:17]}  Nd5 {[%clk 0:01:03]} 35. Rc6 {[%clk 0:00:18]}  Nxe3 {[%clk 0:00:58]} 36. Rfc1 {[%clk 0:00:10]}  Rcd8 {[%clk 0:00:55]} 37. Bc3 {[%clk 0:00:10]}  Nxf5 {[%clk 0:00:53]} 38. Bf1 {[%clk 0:00:06]}  Rd7 {[%clk 0:00:49]} 39. Be2 {[%clk 0:00:06]}  N5d4 {[%clk 0:00:46]} 40. Bxd4 {[%clk 0:00:03]}  Nxd4 {[%clk 0:00:44]} 41. Bxg4 {[%clk 0:00:03]}  f5 {[%clk 0:00:44]} 42. Bh5 {[%clk 0:00:03]}  Red8 {[%clk 0:00:42]} 43. Rc7 {[%clk 0:00:04]}  Rxc7 {[%clk 0:00:38]} 44. Rxc7 {[%clk 0:00:03]}  Nxb5 {[%clk 0:00:36]} 45. Re7 {[%clk 0:00:02]}  Kh7 {[%clk 0:00:37]} 46. Bf7 {[%clk 0:00:03]}  Nd6 {[%clk 0:00:33]} 47. Bb3 {[%clk 0:00:02]}  a5 {[%clk 0:00:29]} 48. Kg2 {[%clk 0:00:02]}  b5 {[%clk 0:00:28]} 49. h4 {[%clk 0:00:03]}  a4 {[%clk 0:00:28]} 50. Bd1 {[%clk 0:00:03]}  a3 {[%clk 0:00:28]} 51. Bb3 {[%clk 0:00:03]}  Ra8 {[%clk 0:00:27]} 52. Rd7 {[%clk 0:00:03]}  a2 {[%clk 0:00:27]} 53. Bxa2 {[%clk 0:00:04]}  Rxa2+ {[%clk 0:00:26]} 54. Kh3 {[%clk 0:00:02]}  Ra6 {[%clk 0:00:26]} 55. h5 {[%clk 0:00:03]}  Ne8 {[%clk 0:00:22]} 56. Kh4 {[%clk 0:00:04]}  Rb6 {[%clk 0:00:20]} 57. Re7 {[%clk 0:00:04]}  Nf6 {[%clk 0:00:19]} 58. Kg5 {[%clk 0:00:03]}  Ng4 {[%clk 0:00:18]} 59. Kxf5 {[%clk 0:00:03]}  Nh6+ {[%clk 0:00:16]} 60. Kxe4 {[%clk 0:00:03]}  b4 {[%clk 0:00:16]} 61. Kf4 {[%clk 0:00:03]}  b3 {[%clk 0:00:17]} 62. Re1 {[%clk 0:00:03]}  b2 {[%clk 0:00:17]} 63. Rb1 {[%clk 0:00:04]}  Rb3 {[%clk 0:00:18]} 64. g4 {[%clk 0:00:04]}  Nf7 {[%clk 0:00:18]} 65. g5 {[%clk 0:00:05]}  g6 {[%clk 0:00:18]} 66. hxg6+ {[%clk 0:00:05]}  Kxg6 {[%clk 0:00:18]} 67. Ke4 {[%clk 0:00:04]}  Nd6+ {[%clk 0:00:19]} 68. Kd4 {[%clk 0:00:04]}  Rb8 {[%clk 0:00:18]} 69. Kd5 {[%clk 0:00:04]}  Nb5 {[%clk 0:00:10]} 0-1


[Site "https://www.chess.com"]

[Event "Titled Tuesday Blitz January 10 Late 2023"]
[White "Sokolovsky, Yahli"]
[Black "Dubov, Daniil"]
[WhiteFideId "2820242"]
[BlackFideId "24126055"]
[WhiteElo "2461"]
[BlackElo "2708"]
[Result "0-1"]
[Round "08"]
[TimeControl "180+2"]
[Date "2023.01.10"]
[WhiteClock "0:00:04"]
[BlackClock "0:01:54"]

1. b3 {[%clk 0:00:00]}  e5 {[%clk 0:00:00]} 2. Bb2 {[%clk 0:03:00]}  Nc6 {[%clk 0:02:59]} 3. e3 {[%clk 0:03:01]}  g6 {[%clk 0:03:00]} 4. f4 {[%clk 0:03:01]}  Bg7 {[%clk 0:03:00]} 5. Nf3 {[%clk 0:02:53]}  d6 {[%clk 0:03:00]} 6. Bb5 {[%clk 0:02:53]}  Ne7 {[%clk 0:03:01]} 7. O-O {[%clk 0:02:52]}  O-O {[%clk 0:03:01]} 8. fxe5 {[%clk 0:02:51]}  Bg4 {[%clk 0:03:01]} 9. Nc3 {[%clk 0:02:51]}  Nxe5 {[%clk 0:03:01]} 10. Be2 {[%clk 0:02:41]}  Bxf3 {[%clk 0:03:00]} 11. Bxf3 {[%clk 0:02:42]}  d5 {[%clk 0:03:00]} 12. Rb1 {[%clk 0:02:42]}  c6 {[%clk 0:03:00]} 13. Be2 {[%clk 0:02:23]}  Nf5 {[%clk 0:02:59]} 14. e4 {[%clk 0:02:09]}  dxe4 {[%clk 0:02:50]} 15. Nxe4 {[%clk 0:02:03]}  Nd4 {[%clk 0:02:45]} 16. Kh1 {[%clk 0:02:04]}  Re8 {[%clk 0:02:44]} 17. c3 {[%clk 0:01:57]}  Nxe2 {[%clk 0:02:42]} 18. Qxe2 {[%clk 0:01:24]}  Qd3 {[%clk 0:02:41]} 19. Rbe1 {[%clk 0:01:25]}  Qxe2 {[%clk 0:02:28]} 20. Rxe2 {[%clk 0:01:12]}  Nd3 {[%clk 0:02:22]} 21. Ba1 {[%clk 0:01:13]}  f5 {[%clk 0:02:23]} 22. Ng3 {[%clk 0:01:09]}  f4 {[%clk 0:02:18]} 23. Ne4 {[%clk 0:01:09]}  Re6 {[%clk 0:02:00]} 24. Rf3 {[%clk 0:00:50]}  Rae8 {[%clk 0:01:54]} 25. Rxd3 {[%clk 0:00:43]}  Rxe4 {[%clk 0:01:54]} 26. Rxe4 {[%clk 0:00:11]}  Rxe4 {[%clk 0:01:53]} 27. Rd8+ {[%clk 0:00:12]}  Bf8 {[%clk 0:01:54]} 28. Kg1 {[%clk 0:00:12]}  Re1+ {[%clk 0:01:54]} 29. Kf2 {[%clk 0:00:11]}  Rxa1 {[%clk 0:01:54]} 30. Rd7 {[%clk 0:00:11]}  Rxa2 {[%clk 0:01:54]} 31. Rxb7 {[%clk 0:00:12]}  Rxd2+ {[%clk 0:01:54]} 32. Kf3 {[%clk 0:00:13]}  Rd3+ {[%clk 0:01:54]} 33. Kxf4 {[%clk 0:00:14]}  Rxc3 {[%clk 0:01:52]} 34. Rxa7 {[%clk 0:00:14]}  Rxb3 {[%clk 0:01:53]} 35. Ra8 {[%clk 0:00:11]}  Rb5 {[%clk 0:01:53]} 36. Rc8 {[%clk 0:00:11]}  Rf5+ {[%clk 0:01:52]} 37. Ke4 {[%clk 0:00:11]}  c5 {[%clk 0:01:52]} 38. h4 {[%clk 0:00:11]}  h5 {[%clk 0:01:52]} 39. g3 {[%clk 0:00:11]}  Kf7 {[%clk 0:01:52]} 40. Rc7+ {[%clk 0:00:09]}  Be7 {[%clk 0:01:52]} 41. Rc6 {[%clk 0:00:09]}  Rf6 {[%clk 0:01:52]} 42. Rc7 {[%clk 0:00:10]}  Ke6 {[%clk 0:01:52]} 43. Ra7 {[%clk 0:00:10]}  Bd6 {[%clk 0:01:52]} 44. Ra6 {[%clk 0:00:07]}  Rf1 {[%clk 0:01:52]} 45. Rc6 {[%clk 0:00:07]}  Re1+ {[%clk 0:01:52]} 46. Kf3 {[%clk 0:00:06]}  Rc1 {[%clk 0:01:52]} 47. Ra6 {[%clk 0:00:06]}  Kd5 {[%clk 0:01:52]} 48. Rb6 {[%clk 0:00:03]}  Rc3+ {[%clk 0:01:52]} 49. Ke2 {[%clk 0:00:01]}  Rxg3 {[%clk 0:01:52]} 50. Kf2 {[%clk 0:00:02]}  Rg4 {[%clk 0:01:52]} 51. Kf3 {[%clk 0:00:02]}  Rf4+ {[%clk 0:01:52]} 52. Ke3 {[%clk 0:00:03]}  Rxh4 {[%clk 0:01:52]} 53. Ra6 {[%clk 0:00:03]}  Rh3+ {[%clk 0:01:52]} 54. Kf2 {[%clk 0:00:04]}  Be5 {[%clk 0:01:52]} 55. Kg2 {[%clk 0:00:04]}  Rg3+ {[%clk 0:01:52]} 56. Kf2 {[%clk 0:00:04]}  h4 {[%clk 0:01:52]} 57. Ra8 {[%clk 0:00:05]}  g5 {[%clk 0:01:53]} 58. Rd8+ {[%clk 0:00:04]}  Ke4 {[%clk 0:01:53]} 59. Rf8 {[%clk 0:00:04]}  c4 {[%clk 0:01:54]} 60. Ke2 {[%clk 0:00:04]}  c3 {[%clk 0:01:54]} 61. Kd1 {[%clk 0:00:04]}  Kd3 {[%clk 0:01:54]} 62. Rd8+ {[%clk 0:00:04]}  Bd4 {[%clk 0:01:54]} 0-1


[Site "https://www.chess.com"]

[Event "Titled Tuesday Blitz January 10 Late 2023"]
[White "Djordjevic, Vuk"]
[Black "Caruana, Fabiano"]
[WhiteFideId "902098"]
[BlackFideId "2020009"]
[WhiteElo "2375"]
[BlackElo "2764"]
[Result "0-1"]
[Round "08"]
[TimeControl "180+2"]
[Date "2023.01.10"]
[WhiteClock "0:00:01"]
[BlackClock "0:00:06"]

1. d4 {[%clk 0:00:00]}  Nf6 {[%clk 0:00:00]} 2. Bg5 {[%clk 0:03:00]}  c5 {[%clk 0:02:56]} 3. Bxf6 {[%clk 0:03:00]}  gxf6 {[%clk 0:02:52]} 4. d5 {[%clk 0:02:59]}  Qb6 {[%clk 0:02:50]} 5. Qc1 {[%clk 0:02:58]}  f5 {[%clk 0:02:49]} 6. c4 {[%clk 0:02:58]}  Bg7 {[%clk 0:02:49]} 7. Nc3 {[%clk 0:02:58]}  d6 {[%clk 0:02:47]} 8. e3 {[%clk 0:02:58]}  Nd7 {[%clk 0:02:47]} 9. Qc2 {[%clk 0:02:57]}  Ne5 {[%clk 0:02:44]} 10. Be2 {[%clk 0:02:54]}  h5 {[%clk 0:02:40]} 11. Nh3 {[%clk 0:02:51]}  h4 {[%clk 0:02:37]} 12. O-O {[%clk 0:02:50]}  Bd7 {[%clk 0:02:35]} 13. Rab1 {[%clk 0:02:51]}  O-O-O {[%clk 0:02:34]} 14. b4 {[%clk 0:02:48]}  cxb4 {[%clk 0:02:31]} 15. a3 {[%clk 0:02:42]}  Qc7 {[%clk 0:02:27]} 16. axb4 {[%clk 0:02:42]}  Nxc4 {[%clk 0:02:22]} 17. Rfc1 {[%clk 0:02:04]}  Kb8 {[%clk 0:02:18]} 18. Na2 {[%clk 0:02:01]}  b5 {[%clk 0:02:09]} 19. Bxc4 {[%clk 0:01:07]}  Qxc4 {[%clk 0:02:07]} 20. Qd2 {[%clk 0:00:59]}  Qe4 {[%clk 0:02:04]} 21. Ng5 {[%clk 0:00:40]}  Qg4 {[%clk 0:02:02]} 22. Nxf7 {[%clk 0:00:38]}  h3 {[%clk 0:02:00]} 23. f3 {[%clk 0:00:38]}  Qg6 {[%clk 0:01:47]} 24. Nxd8 {[%clk 0:00:36]}  Rxd8 {[%clk 0:01:46]} 25. g3 {[%clk 0:00:33]}  f4 {[%clk 0:01:46]} 26. exf4 {[%clk 0:00:33]}  e5 {[%clk 0:01:37]} 27. dxe6 {[%clk 0:00:30]}  Bxe6 {[%clk 0:01:30]} 28. Nc3 {[%clk 0:00:23]}  Bc4 {[%clk 0:01:30]} 29. Ne4 {[%clk 0:00:23]}  d5 {[%clk 0:01:24]} 30. Nc5 {[%clk 0:00:14]}  d4 {[%clk 0:01:20]} 31. Re1 {[%clk 0:00:12]}  d3 {[%clk 0:01:17]} 32. Kh1 {[%clk 0:00:10]}  Qc6 {[%clk 0:01:14]} 33. Rf1 {[%clk 0:00:09]}  Bd4 {[%clk 0:01:10]} 34. Nxd3 {[%clk 0:00:09]}  Bb6 {[%clk 0:01:05]} 35. Ne5 {[%clk 0:00:04]}  Rxd2 {[%clk 0:00:44]} 36. Nxc6+ {[%clk 0:00:04]}  Kc7 {[%clk 0:00:44]} 37. Ne5 {[%clk 0:00:04]}  Bxf1 {[%clk 0:00:40]} 38. Rxf1 {[%clk 0:00:04]}  a5 {[%clk 0:00:38]} 39. bxa5 {[%clk 0:00:05]}  Bxa5 {[%clk 0:00:35]} 40. f5 {[%clk 0:00:05]}  Kd6 {[%clk 0:00:35]} 41. f4 {[%clk 0:00:06]}  Bc3 {[%clk 0:00:31]} 42. f6 {[%clk 0:00:04]}  Ke6 {[%clk 0:00:26]} 43. f7 {[%clk 0:00:04]}  Ke7 {[%clk 0:00:24]} 44. Re1 {[%clk 0:00:03]}  Kf8 {[%clk 0:00:25]} 45. Kg1 {[%clk 0:00:02]}  b4 {[%clk 0:00:16]} 46. Rb1 {[%clk 0:00:03]}  Bd4+ {[%clk 0:00:15]} 47. Kf1 {[%clk 0:00:03]}  Rf2+ {[%clk 0:00:13]} 48. Ke1 {[%clk 0:00:02]}  Rxh2 {[%clk 0:00:12]} 49. Rb3 {[%clk 0:00:02]}  Bc3+ {[%clk 0:00:12]} 50. Kf1 {[%clk 0:00:02]}  Rd2 {[%clk 0:00:12]} 51. Nf3 {[%clk 0:00:02]}  h2 {[%clk 0:00:08]} 52. Nxh2 {[%clk 0:00:02]}  Rxh2 {[%clk 0:00:05]} 53. g4 {[%clk 0:00:01]}  Kxf7 {[%clk 0:00:06]} 54. Rb1 {[%clk 0:00:01]}  Rh1+ {[%clk 0:00:07]} 55. Ke2 {[%clk 0:00:01]}  Rxb1 {[%clk 0:00:06]} 0-1


[Site "https://www.chess.com"]

[Event "Titled Tuesday Blitz January 10 Late 2023"]
[White "Svane, Rasmus"]
[Black "Wieczorek, Oskar"]
[WhiteFideId "4657101"]
[BlackFideId "1133950"]
[WhiteElo "2623"]
[BlackElo "2512"]
[Result "1-0"]
[Round "08"]
[TimeControl "180+2"]
[Date "2023.01.10"]
[WhiteClock "0:00:08"]
[BlackClock "0:00:09"]

1. Nf3 {[%clk 0:00:00]}  c5 {[%clk 0:00:00]} 2. c4 {[%clk 0:03:00]}  g6 {[%clk 0:02:51]} 3. d4 {[%clk 0:02:59]}  cxd4 {[%clk 0:02:51]} 4. Nxd4 {[%clk 0:02:58]}  Bg7 {[%clk 0:02:52]} 5. e4 {[%clk 0:02:59]}  Nc6 {[%clk 0:02:52]} 6. Be3 {[%clk 0:02:59]}  Nf6 {[%clk 0:02:53]} 7. Nc3 {[%clk 0:02:56]}  d6 {[%clk 0:02:50]} 8. Be2 {[%clk 0:02:56]}  O-O {[%clk 0:02:50]} 9. O-O {[%clk 0:02:55]}  Nxd4 {[%clk 0:02:51]} 10. Bxd4 {[%clk 0:02:53]}  Bd7 {[%clk 0:02:51]} 11. f4 {[%clk 0:02:54]}  Bc6 {[%clk 0:02:52]} 12. Qd3 {[%clk 0:02:46]}  Nd7 {[%clk 0:02:51]} 13. Bxg7 {[%clk 0:02:47]}  Kxg7 {[%clk 0:02:50]} 14. Kh1 {[%clk 0:02:15]}  Qb6 {[%clk 0:02:51]} 15. Rab1 {[%clk 0:02:15]}  a5 {[%clk 0:02:45]} 16. b3 {[%clk 0:02:03]}  Qc5 {[%clk 0:02:32]} 17. Bf3 {[%clk 0:01:55]}  h5 {[%clk 0:02:28]} 18. Rfd1 {[%clk 0:01:48]}  Nf6 {[%clk 0:02:12]} 19. h3 {[%clk 0:01:44]}  h4 {[%clk 0:02:10]} 20. Re1 {[%clk 0:01:40]}  e5 {[%clk 0:02:05]} 21. f5 {[%clk 0:01:38]}  Rad8 {[%clk 0:01:46]} 22. Qd2 {[%clk 0:01:25]}  Qd4 {[%clk 0:01:26]} 23. Qxd4 {[%clk 0:01:17]}  exd4 {[%clk 0:01:09]} 24. Nd5 {[%clk 0:00:45]}  Bxd5 {[%clk 0:01:09]} 25. exd5 {[%clk 0:00:45]}  Nd7 {[%clk 0:01:02]} 26. fxg6 {[%clk 0:00:43]}  fxg6 {[%clk 0:00:54]} 27. Rbd1 {[%clk 0:00:33]}  Ne5 {[%clk 0:00:52]} 28. Rxd4 {[%clk 0:00:31]}  g5 {[%clk 0:00:52]} 29. Be2 {[%clk 0:00:28]}  b6 {[%clk 0:00:43]} 30. Kg1 {[%clk 0:00:22]}  Rf6 {[%clk 0:00:38]} 31. Rf1 {[%clk 0:00:22]}  Rdf8 {[%clk 0:00:30]} 32. Rxf6 {[%clk 0:00:21]}  Rxf6 {[%clk 0:00:31]} 33. Re4 {[%clk 0:00:20]}  Rf8 {[%clk 0:00:31]} 34. Re3 {[%clk 0:00:19]}  Rf4 {[%clk 0:00:25]} 35. Rc3 {[%clk 0:00:19]}  Rd4 {[%clk 0:00:24]} 36. Rc2 {[%clk 0:00:12]}  Rf4 {[%clk 0:00:23]} 37. Rc1 {[%clk 0:00:13]}  Rd4 {[%clk 0:00:22]} 38. Rd1 {[%clk 0:00:11]}  Rf4 {[%clk 0:00:20]} 39. Rd2 {[%clk 0:00:11]}  Kf6 {[%clk 0:00:20]} 40. Bd1 {[%clk 0:00:09]}  Ke7 {[%clk 0:00:15]} 41. Bc2 {[%clk 0:00:09]}  Rf3 {[%clk 0:00:15]} 42. gxf3 {[%clk 0:00:10]}  Nxf3+ {[%clk 0:00:11]} 43. Kf2 {[%clk 0:00:06]}  Nxd2 {[%clk 0:00:12]} 44. Ke2 {[%clk 0:00:07]}  g4 {[%clk 0:00:12]} 45. Kxd2 {[%clk 0:00:07]}  gxh3 {[%clk 0:00:11]} 46. Ke3 {[%clk 0:00:08]}  h2 {[%clk 0:00:09]} 47. Be4 {[%clk 0:00:08]} 1-0


[Site "https://www.chess.com"]

[Event "Titled Tuesday Blitz January 10 Late 2023"]
[White "Averjanov, Alexey"]
[Black "Baskakov, Egor"]
[WhiteFideId "14109867"]
[BlackFideId "24197866"]
[WhiteElo "2399"]
[BlackElo "2215"]
[Result "1-0"]
[Round "08"]
[TimeControl "180+2"]
[Date "2023.01.10"]
[WhiteClock "0:01:19"]
[BlackClock "0:01:16"]

1. d4 {[%clk 0:00:00]}  Nf6 {[%clk 0:00:00]} 2. c4 {[%clk 0:03:00]}  e6 {[%clk 0:02:57]} 3. Nf3 {[%clk 0:03:00]}  d5 {[%clk 0:02:57]} 4. e3 {[%clk 0:03:01]}  Ne4 {[%clk 0:02:58]} 5. g3 {[%clk 0:03:00]}  Be7 {[%clk 0:02:58]} 6. Bg2 {[%clk 0:02:57]}  O-O {[%clk 0:02:54]} 7. O-O {[%clk 0:02:57]}  f5 {[%clk 0:02:53]} 8. b3 {[%clk 0:02:57]}  c6 {[%clk 0:02:54]} 9. Ba3 {[%clk 0:02:57]}  Bd7 {[%clk 0:02:54]} 10. Bxe7 {[%clk 0:02:57]}  Qxe7 {[%clk 0:02:54]} 11. Nbd2 {[%clk 0:02:56]}  Be8 {[%clk 0:02:55]} 12. Ne5 {[%clk 0:02:56]}  Nxd2 {[%clk 0:02:56]} 13. Qxd2 {[%clk 0:02:57]}  Nd7 {[%clk 0:02:55]} 14. Nxd7 {[%clk 0:02:57]}  Qxd7 {[%clk 0:02:56]} 15. c5 {[%clk 0:02:56]}  Qe7 {[%clk 0:02:57]} 16. f4 {[%clk 0:02:56]}  g5 {[%clk 0:02:57]} 17. b4 {[%clk 0:02:57]}  a6 {[%clk 0:02:55]} 18. a4 {[%clk 0:02:56]}  g4 {[%clk 0:02:53]} 19. Kf2 {[%clk 0:02:56]}  h5 {[%clk 0:02:47]} 20. h4 {[%clk 0:02:55]}  gxh3 {[%clk 0:02:47]} 21. Bxh3 {[%clk 0:02:55]}  Rf7 {[%clk 0:02:45]} 22. Rh1 {[%clk 0:02:55]}  h4 {[%clk 0:02:44]} 23. Rag1 {[%clk 0:02:54]}  Rg7 {[%clk 0:02:43]} 24. gxh4 {[%clk 0:02:53]}  Qxh4+ {[%clk 0:02:41]} 25. Kf1 {[%clk 0:02:43]}  Qf6 {[%clk 0:02:41]} 26. Rxg7+ {[%clk 0:02:43]}  Kxg7 {[%clk 0:02:07]} 27. Qh2 {[%clk 0:02:35]}  Bg6 {[%clk 0:02:08]} 28. Bg2 {[%clk 0:02:11]}  Rg8 {[%clk 0:02:03]} 29. Qh6+ {[%clk 0:02:10]}  Kf7 {[%clk 0:01:59]} 30. Bf3 {[%clk 0:02:05]}  Qg7 {[%clk 0:01:58]} 31. Qxg7+ {[%clk 0:02:06]}  Kxg7 {[%clk 0:01:51]} 32. Be2 {[%clk 0:02:04]}  Rh8 {[%clk 0:01:48]} 33. Rxh8 {[%clk 0:01:56]}  Kxh8 {[%clk 0:01:40]} 34. b5 {[%clk 0:01:55]}  a5 {[%clk 0:01:41]} 35. b6 {[%clk 0:01:21]}  Be8 {[%clk 0:01:16]} 36. Ba6 {[%clk 0:01:19]} 1-0


[Site "https://www.chess.com"]

[Event "Titled Tuesday Blitz January 10 Late 2023"]
[White "Martins, Bruno Andre Leite"]
[Black "Makarian, Rudik"]
[WhiteFideId "1942255"]
[BlackFideId "44105681"]
[WhiteElo "2348"]
[BlackElo "2545"]
[Result "0-1"]
[Round "08"]
[TimeControl "180+2"]
[Date "2023.01.10"]
[WhiteClock "0:00:03"]
[BlackClock "0:00:19"]

1. e4 {[%clk 0:00:00]}  c5 {[%clk 0:00:00]} 2. Nf3 {[%clk 0:03:00]}  d6 {[%clk 0:02:57]} 3. d4 {[%clk 0:02:58]}  cxd4 {[%clk 0:02:56]} 4. Nxd4 {[%clk 0:02:58]}  Nf6 {[%clk 0:02:57]} 5. Nc3 {[%clk 0:02:59]}  a6 {[%clk 0:02:57]} 6. Bd3 {[%clk 0:02:59]}  Nc6 {[%clk 0:02:58]} 7. Nxc6 {[%clk 0:03:00]}  bxc6 {[%clk 0:02:56]} 8. O-O {[%clk 0:02:59]}  g6 {[%clk 0:02:57]} 9. f4 {[%clk 0:02:59]}  Nd7 {[%clk 0:02:58]} 10. Qf3 {[%clk 0:02:59]}  Bg7 {[%clk 0:02:50]} 11. e5 {[%clk 0:02:46]}  dxe5 {[%clk 0:02:49]} 12. Qxc6 {[%clk 0:02:46]}  Rb8 {[%clk 0:02:46]} 13. fxe5 {[%clk 0:02:46]}  Bb7 {[%clk 0:02:46]} 14. Qa4 {[%clk 0:02:45]}  Bxe5 {[%clk 0:02:34]} 15. Bh6 {[%clk 0:02:33]}  Qb6+ {[%clk 0:01:36]} 16. Kh1 {[%clk 0:02:25]}  g5 {[%clk 0:01:30]} 17. Bxg5 {[%clk 0:02:23]}  Rg8 {[%clk 0:01:12]} 18. Rf5 {[%clk 0:01:54]}  Bc6 {[%clk 0:01:11]} 19. Qh4 {[%clk 0:01:49]}  Qxb2 {[%clk 0:00:57]} 20. Raf1 {[%clk 0:00:57]}  Qxc3 {[%clk 0:00:39]} 21. Rxf7 {[%clk 0:00:42]}  Bxg2+ {[%clk 0:00:39]} 22. Kxg2 {[%clk 0:00:33]}  Qd2+ {[%clk 0:00:30]} 23. Kh1 {[%clk 0:00:33]}  Qxg5 {[%clk 0:00:31]} 24. Qh3 {[%clk 0:00:22]}  Nf6 {[%clk 0:00:31]} 25. Bc4 {[%clk 0:00:08]}  Qg4 {[%clk 0:00:27]} 26. Qxg4 {[%clk 0:00:03]}  Rxg4 {[%clk 0:00:19]} 27. Re1 {[%clk 0:00:03]}  Rxc4 {[%clk 0:00:19]} 0-1


[Site "https://www.chess.com"]

[Event "Titled Tuesday Blitz January 10 Late 2023"]
[White "Kuznecovs, Nikita"]
[Black "Timmermans, Mark"]
[WhiteFideId "11604557"]
[BlackFideId "1026399"]
[WhiteElo "2287"]
[BlackElo "2392"]
[Result "1-0"]
[Round "08"]
[TimeControl "180+2"]
[Date "2023.01.10"]
[WhiteClock "0:00:16"]
[BlackClock "0:00:36"]

1. Nf3 {[%clk 0:00:00]}  Nf6 {[%clk 0:00:00]} 2. g3 {[%clk 0:02:59]}  e6 {[%clk 0:02:58]} 3. Bg2 {[%clk 0:02:59]}  d5 {[%clk 0:02:57]} 4. O-O {[%clk 0:02:59]}  Be7 {[%clk 0:02:58]} 5. c4 {[%clk 0:03:00]}  O-O {[%clk 0:02:59]} 6. b3 {[%clk 0:02:53]}  c5 {[%clk 0:03:00]} 7. Bb2 {[%clk 0:02:54]}  b6 {[%clk 0:03:00]} 8. cxd5 {[%clk 0:02:37]}  Nxd5 {[%clk 0:02:59]} 9. d3 {[%clk 0:02:24]}  Bb7 {[%clk 0:03:00]} 10. Nbd2 {[%clk 0:02:17]}  Nc6 {[%clk 0:02:59]} 11. a3 {[%clk 0:02:17]}  Bf6 {[%clk 0:02:59]} 12. Qc1 {[%clk 0:02:10]}  Bxb2 {[%clk 0:02:59]} 13. Qxb2 {[%clk 0:02:10]}  Qe7 {[%clk 0:02:58]} 14. Rac1 {[%clk 0:02:10]}  Rac8 {[%clk 0:02:59]} 15. Nc4 {[%clk 0:02:09]}  Rfd8 {[%clk 0:02:55]} 16. Ne3 {[%clk 0:02:07]}  Nxe3 {[%clk 0:02:55]} 17. fxe3 {[%clk 0:02:01]}  e5 {[%clk 0:02:52]} 18. Nd2 {[%clk 0:02:01]}  f6 {[%clk 0:02:53]} 19. b4 {[%clk 0:02:01]}  cxb4 {[%clk 0:02:51]} 20. axb4 {[%clk 0:01:30]}  Rc7 {[%clk 0:02:45]} 21. Rc4 {[%clk 0:01:30]}  b5 {[%clk 0:02:27]} 22. Rc5 {[%clk 0:01:15]}  a6 {[%clk 0:02:20]} 23. Rfc1 {[%clk 0:01:13]}  Rdc8 {[%clk 0:02:17]} 24. Qc3 {[%clk 0:01:13]}  Qd7 {[%clk 0:02:17]} 25. Nb3 {[%clk 0:01:00]}  Qd8 {[%clk 0:02:13]} 26. Na5 {[%clk 0:00:59]}  Nd4 {[%clk 0:01:56]} 27. exd4 {[%clk 0:00:55]}  exd4 {[%clk 0:01:55]} 28. Qb3+ {[%clk 0:00:49]}  Kf8 {[%clk 0:01:55]} 29. Nxb7 {[%clk 0:00:41]}  Qe7 {[%clk 0:01:54]} 30. Rxc7 {[%clk 0:00:39]}  Rxc7 {[%clk 0:01:05]} 31. Rxc7 {[%clk 0:00:37]}  Qxc7 {[%clk 0:01:06]} 32. Qb2 {[%clk 0:00:36]}  Qe5 {[%clk 0:01:07]} 33. Nc5 {[%clk 0:00:33]}  Kf7 {[%clk 0:01:04]} 34. Nb3 {[%clk 0:00:21]}  Qe3+ {[%clk 0:01:04]} 35. Kf1 {[%clk 0:00:20]}  Qh6 {[%clk 0:01:00]} 36. Qxd4 {[%clk 0:00:20]}  Qxh2 {[%clk 0:00:56]} 37. Bd5+ {[%clk 0:00:19]}  Ke7 {[%clk 0:00:55]} 38. Qc5+ {[%clk 0:00:19]}  Kd8 {[%clk 0:00:47]} 39. Qd6+ {[%clk 0:00:18]}  Ke8 {[%clk 0:00:48]} 40. Bc6+ {[%clk 0:00:18]}  Kf7 {[%clk 0:00:48]} 41. Qd7+ {[%clk 0:00:15]}  Kg6 {[%clk 0:00:48]} 42. Be4+ {[%clk 0:00:15]}  Kh6 {[%clk 0:00:48]} 43. Qf5 {[%clk 0:00:15]}  g6 {[%clk 0:00:48]} 44. Qf4+ {[%clk 0:00:14]}  Kg7 {[%clk 0:00:45]} 45. Nd4 {[%clk 0:00:12]}  Qh3+ {[%clk 0:00:46]} 46. Kf2 {[%clk 0:00:11]}  Qd7 {[%clk 0:00:45]} 47. Nf3 {[%clk 0:00:11]}  Qa7+ {[%clk 0:00:44]} 48. Qe3 {[%clk 0:00:10]}  Qe7 {[%clk 0:00:43]} 49. Qd4 {[%clk 0:00:10]}  h5 {[%clk 0:00:44]} 50. Kg2 {[%clk 0:00:11]}  Kh6 {[%clk 0:00:41]} 51. Nd2 {[%clk 0:00:10]}  f5 {[%clk 0:00:41]} 52. Bf3 {[%clk 0:00:10]}  Kh7 {[%clk 0:00:41]} 53. Nf1 {[%clk 0:00:11]}  Qc7 {[%clk 0:00:39]} 54. Ne3 {[%clk 0:00:10]}  a5 {[%clk 0:00:35]} 55. bxa5 {[%clk 0:00:10]}  Qxa5 {[%clk 0:00:36]} 56. Nd5 {[%clk 0:00:10]}  Kh6 {[%clk 0:00:37]} 57. Qf4+ {[%clk 0:00:11]}  Kg7 {[%clk 0:00:36]} 58. Qc7+ {[%clk 0:00:11]}  Qxc7 {[%clk 0:00:34]} 59. Nxc7 {[%clk 0:00:12]}  b4 {[%clk 0:00:34]} 60. Bd5 {[%clk 0:00:13]}  Kf6 {[%clk 0:00:35]} 61. Bb3 {[%clk 0:00:13]}  Ke5 {[%clk 0:00:35]} 62. Nd5 {[%clk 0:00:14]}  g5 {[%clk 0:00:36]} 63. Nxb4 {[%clk 0:00:14]}  Kd4 {[%clk 0:00:35]} 64. Bf7 {[%clk 0:00:15]}  h4 {[%clk 0:00:35]} 65. gxh4 {[%clk 0:00:15]}  gxh4 {[%clk 0:00:34]} 66. Bg6 {[%clk 0:00:15]}  Ke3 {[%clk 0:00:35]} 67. Kf1 {[%clk 0:00:15]}  f4 {[%clk 0:00:36]} 68. Be4 {[%clk 0:00:16]}  h3 {[%clk 0:00:36]} 69. Nc2+ {[%clk 0:00:16]}  Kd2 {[%clk 0:00:36]} 70. Nd4 {[%clk 0:00:15]}  Ke3 {[%clk 0:00:36]} 71. Ne6 {[%clk 0:00:16]}  h2 {[%clk 0:00:36]} 72. Bf3 {[%clk 0:00:16]}  Kd2 {[%clk 0:00:35]} 73. Nxf4 {[%clk 0:00:17]}  Ke3 {[%clk 0:00:35]} 74. Ne6 {[%clk 0:00:17]}  Kd2 {[%clk 0:00:36]} 75. d4 {[%clk 0:00:16]} 1-0


[Site "https://www.chess.com"]